{"text_format":"3","workbook":"xlsx","n_sheets":3,"sheets":["Programación diaria","Programador de eventos","Intervalos de tiempo"],"not_rendered":{"defined_names":21},"read":"whole","date_system":"1900"}

{"sheet":"Programación diaria","index":0,"n_rows":76,"n_cols":13,"rows_kept":76,"merged":[[0,1,0,2],[1,1,5,2],[2,12,4,12],[3,7,4,7],[5,12,7,12],[6,1,8,2],[8,12,10,12],[9,7,10,7],[10,1,10,2],[11,12,13,12],[14,12,16,12],[15,7,16,7],[17,12,19,12],[18,1,18,2],[20,12,22,12],[21,7,22,7],[23,12,25,12],[24,1,24,2],[25,1,25,2],[26,7,27,7],[26,12,28,12],[29,12,31,12],[31,7,32,7],[32,12,34,12]]}
[null,"Programación diaria"]
[null,{"$f":"IFERROR(DAY(DateVal),\"\")","v":23},null,null,"Hora",{"$f":"IFERROR(UPPER(TEXT(DATE(ReportYear,MonthNumber,ReportDay),\"d mmmm aaaa\")),\"\")","v":"23 JUNIO 2022"},null,"VISTA SEMANAL",{"$nulls":3},"NOTAS/LISTA DE TAREAS PENDIENTES"]
[{"$nulls":4},"Hora","Descripción",null,{"$f":"IFERROR(TEXT(DATEVALUE(DateVal)+1,\"dddd\"),\"\")","v":"viernes"},{"$f":"IFERROR(INDEX(Programadordeeventos[],MATCH($H$6&\"|\"&ROW(A1),Programadordeeventos[VALOR ÚNICO (CALCULADO)],0),2),\"\")","v":""},{"$f":"IFERROR(INDEX(Programadordeeventos[],MATCH($H$6&\"|\"&ROW(A1),Programadordeeventos[VALOR ÚNICO (CALCULADO)],0),3),\"\")","v":""},null,null,"Recoger la ropa de la tintorería."]
[{"$nulls":4},{"$f":"'Intervalos de tiempo'!E3","v":"06:00:00"},{"$f":"IFERROR(INDEX(Programadordeeventos[],MATCH(DATEVALUE(DateVal)&Programacióndiaria[[#This Row],[Hora]],LookUpDateAndTime,0),3),\"\")","v":"Despertarse"},null,{"$f":"IFERROR(TEXT(DATEVALUE(DateVal)+1,\"d\"),\"\")","v":"24"},{"$f":"IFERROR(INDEX(Programadordeeventos[],MATCH($H$6&\"|\"&ROW(A2),Programadordeeventos[VALOR ÚNICO (CALCULADO)],0),2),\"\")","v":"06:30:00"},{"$f":"IFERROR(INDEX(Programadordeeventos[],MATCH($H$6&\"|\"&ROW(A2),Programadordeeventos[VALOR ÚNICO (CALCULADO)],0),3),\"\")","v":"Desayuno"}]
[{"$nulls":4},{"$f":"'Intervalos de tiempo'!E4","v":"06:15:00"},{"$f":"IFERROR(INDEX(Programadordeeventos[],MATCH(DATEVALUE(DateVal)&Programacióndiaria[[#This Row],[Hora]],LookUpDateAndTime,0),3),\"\")","v":""},null,null,{"$f":"IFERROR(INDEX(Programadordeeventos[],MATCH($H$6&\"|\"&ROW(A3),Programadordeeventos[VALOR ÚNICO (CALCULADO)],0),2),\"\")","v":""},{"$f":"IFERROR(INDEX(Programadordeeventos[],MATCH($H$6&\"|\"&ROW(A3),Programadordeeventos[VALOR ÚNICO (CALCULADO)],0),3),\"\")","v":""}]
[{"$nulls":4},{"$f":"'Intervalos de tiempo'!E5","v":"06:30:00"},{"$f":"IFERROR(INDEX(Programadordeeventos[],MATCH(DATEVALUE(DateVal)&Programacióndiaria[[#This Row],[Hora]],LookUpDateAndTime,0),3),\"\")","v":"Ducha"},null,{"$f":"IFERROR(DateVal+1,\"\")","v":"2022-06-24"},{"$f":"IFERROR(INDEX(Programadordeeventos[],MATCH($H$6&\"|\"&ROW(A4),Programadordeeventos[VALOR ÚNICO (CALCULADO)],0),2),\"\")","v":""},{"$f":"IFERROR(INDEX(Programadordeeventos[],MATCH($H$6&\"|\"&ROW(A4),Programadordeeventos[VALOR ÚNICO (CALCULADO)],0),3),\"\")","v":""},null,null,"Llamar a la compañía telefónica"]
[null,{"$f":"IFERROR(TEXT(DateVal,\"dddd\"),\"\")","v":"jueves"},null,null,{"$f":"'Intervalos de tiempo'!E6","v":"06:45:00"},{"$f":"IFERROR(INDEX(Programadordeeventos[],MATCH(DATEVALUE(DateVal)&Programacióndiaria[[#This Row],[Hora]],LookUpDateAndTime,0),3),\"\")","v":""},null,null,{"$f":"IFERROR(INDEX(Programadordeeventos[],MATCH($H$6&\"|\"&ROW(A5),Programadordeeventos[VALOR ÚNICO (CALCULADO)],0),2),\"\")","v":""},{"$f":"IFERROR(INDEX(Programadordeeventos[],MATCH($H$6&\"|\"&ROW(A5),Programadordeeventos[VALOR ÚNICO (CALCULADO)],0),3),\"\")","v":""}]
[{"$nulls":4},{"$f":"'Intervalos de tiempo'!E7","v":"07:00:00"},{"$f":"IFERROR(INDEX(Programadordeeventos[],MATCH(DATEVALUE(DateVal)&Programacióndiaria[[#This Row],[Hora]],LookUpDateAndTime,0),3),\"\")","v":""},null,null,{"$f":"IFERROR(INDEX(Programadordeeventos[],MATCH($H$6&\"|\"&ROW(A6),Programadordeeventos[VALOR ÚNICO (CALCULADO)],0),2),\"\")","v":""},{"$f":"IFERROR(INDEX(Programadordeeventos[],MATCH($H$6&\"|\"&ROW(A6),Programadordeeventos[VALOR ÚNICO (CALCULADO)],0),3),\"\")","v":""}]
[{"$nulls":4},{"$f":"'Intervalos de tiempo'!E8","v":"07:15:00"},{"$f":"IFERROR(INDEX(Programadordeeventos[],MATCH(DATEVALUE(DateVal)&Programacióndiaria[[#This Row],[Hora]],LookUpDateAndTime,0),3),\"\")","v":""},null,{"$f":"IFERROR(TEXT(DATEVALUE(DateVal)+2,\"dddd\"),\"\")","v":"sábado"},{"$f":"IFERROR(INDEX(Programadordeeventos[],MATCH($H$12&\"|\"&ROW(A1),Programadordeeventos[VALOR ÚNICO (CALCULADO)],0),2),\"\")","v":""},{"$f":"IFERROR(INDEX(Programadordeeventos[],MATCH($H$12&\"|\"&ROW(A1),Programadordeeventos[VALOR ÚNICO (CALCULADO)],0),3),\"\")","v":""}]
[{"$nulls":4},{"$f":"'Intervalos de tiempo'!E9","v":"07:30:00"},{"$f":"IFERROR(INDEX(Programadordeeventos[],MATCH(DATEVALUE(DateVal)&Programacióndiaria[[#This Row],[Hora]],LookUpDateAndTime,0),3),\"\")","v":"Ir al trabajo"},null,{"$f":"IFERROR(TEXT(DATEVALUE(DateVal)+2,\"d\"),\"\")","v":"25"},{"$f":"IFERROR(INDEX(Programadordeeventos[],MATCH($H$12&\"|\"&ROW(A2),Programadordeeventos[VALOR ÚNICO (CALCULADO)],0),2),\"\")","v":""},{"$f":"IFERROR(INDEX(Programadordeeventos[],MATCH($H$12&\"|\"&ROW(A2),Programadordeeventos[VALOR ÚNICO (CALCULADO)],0),3),\"\")","v":""}]
[null,"VER PROGRAMACIÓN",null,null,{"$f":"'Intervalos de tiempo'!E10","v":"07:45:00"},{"$f":"IFERROR(INDEX(Programadordeeventos[],MATCH(DATEVALUE(DateVal)&Programacióndiaria[[#This Row],[Hora]],LookUpDateAndTime,0),3),\"\")","v":""},null,null,{"$f":"IFERROR(INDEX(Programadordeeventos[],MATCH($H$12&\"|\"&ROW(A3),Programadordeeventos[VALOR ÚNICO (CALCULADO)],0),2),\"\")","v":""},{"$f":"IFERROR(INDEX(Programadordeeventos[],MATCH($H$12&\"|\"&ROW(A3),Programadordeeventos[VALOR ÚNICO (CALCULADO)],0),3),\"\")","v":""}]
[{"$nulls":4},{"$f":"'Intervalos de tiempo'!E11","v":"08:00:00"},{"$f":"IFERROR(INDEX(Programadordeeventos[],MATCH(DATEVALUE(DateVal)&Programacióndiaria[[#This Row],[Hora]],LookUpDateAndTime,0),3),\"\")","v":"Comenzar el turno"},null,{"$f":"IFERROR(DateVal+2,\"\")","v":"2022-06-25"},{"$f":"IFERROR(INDEX(Programadordeeventos[],MATCH($H$12&\"|\"&ROW(A4),Programadordeeventos[VALOR ÚNICO (CALCULADO)],0),2),\"\")","v":""},{"$f":"IFERROR(INDEX(Programadordeeventos[],MATCH($H$12&\"|\"&ROW(A4),Programadordeeventos[VALOR ÚNICO (CALCULADO)],0),3),\"\")","v":""}]
[null,"Año",null,null,{"$f":"'Intervalos de tiempo'!E12","v":"08:15:00"},{"$f":"IFERROR(INDEX(Programadordeeventos[],MATCH(DATEVALUE(DateVal)&Programacióndiaria[[#This Row],[Hora]],LookUpDateAndTime,0),3),\"\")","v":""},null,null,{"$f":"IFERROR(INDEX(Programadordeeventos[],MATCH($H$12&\"|\"&ROW(A5),Programadordeeventos[VALOR ÚNICO (CALCULADO)],0),2),\"\")","v":""},{"$f":"IFERROR(INDEX(Programadordeeventos[],MATCH($H$12&\"|\"&ROW(A5),Programadordeeventos[VALOR ÚNICO (CALCULADO)],0),3),\"\")","v":""}]
[{"$nulls":4},{"$f":"'Intervalos de tiempo'!E13","v":"08:30:00"},{"$f":"IFERROR(INDEX(Programadordeeventos[],MATCH(DATEVALUE(DateVal)&Programacióndiaria[[#This Row],[Hora]],LookUpDateAndTime,0),3),\"\")","v":""},null,null,{"$f":"IFERROR(INDEX(Programadordeeventos[],MATCH($H$12&\"|\"&ROW(A6),Programadordeeventos[VALOR ÚNICO (CALCULADO)],0),2),\"\")","v":""},{"$f":"IFERROR(INDEX(Programadordeeventos[],MATCH($H$12&\"|\"&ROW(A6),Programadordeeventos[VALOR ÚNICO (CALCULADO)],0),3),\"\")","v":""}]
[null,"Mes",null,null,{"$f":"'Intervalos de tiempo'!E14","v":"08:45:00"},{"$f":"IFERROR(INDEX(Programadordeeventos[],MATCH(DATEVALUE(DateVal)&Programacióndiaria[[#This Row],[Hora]],LookUpDateAndTime,0),3),\"\")","v":""},null,{"$f":"IFERROR(TEXT(DATEVALUE(DateVal)+3,\"dddd\"),\"\")","v":"domingo"},{"$f":"IFERROR(INDEX(Programadordeeventos[],MATCH($H$18&\"|\"&ROW(A1),Programadordeeventos[VALOR ÚNICO (CALCULADO)],0),2),\"\")","v":""},{"$f":"IFERROR(INDEX(Programadordeeventos[],MATCH($H$18&\"|\"&ROW(A1),Programadordeeventos[VALOR ÚNICO (CALCULADO)],0),3),\"\")","v":""}]
[{"$nulls":4},{"$f":"'Intervalos de tiempo'!E15","v":"09:00:00"},{"$f":"IFERROR(INDEX(Programadordeeventos[],MATCH(DATEVALUE(DateVal)&Programacióndiaria[[#This Row],[Hora]],LookUpDateAndTime,0),3),\"\")","v":""},null,{"$f":"IFERROR(TEXT(DATEVALUE(DateVal)+3,\"d\"),\"\")","v":"26"},{"$f":"IFERROR(INDEX(Programadordeeventos[],MATCH($H$18&\"|\"&ROW(A2),Programadordeeventos[VALOR ÚNICO (CALCULADO)],0),2),\"\")","v":""},{"$f":"IFERROR(INDEX(Programadordeeventos[],MATCH($H$18&\"|\"&ROW(A2),Programadordeeventos[VALOR ÚNICO (CALCULADO)],0),3),\"\")","v":""}]
[null,"Día",null,null,{"$f":"'Intervalos de tiempo'!E16","v":"09:15:00"},{"$f":"IFERROR(INDEX(Programadordeeventos[],MATCH(DATEVALUE(DateVal)&Programacióndiaria[[#This Row],[Hora]],LookUpDateAndTime,0),3),\"\")","v":""},null,null,{"$f":"IFERROR(INDEX(Programadordeeventos[],MATCH($H$18&\"|\"&ROW(A3),Programadordeeventos[VALOR ÚNICO (CALCULADO)],0),2),\"\")","v":""},{"$f":"IFERROR(INDEX(Programadordeeventos[],MATCH($H$18&\"|\"&ROW(A3),Programadordeeventos[VALOR ÚNICO (CALCULADO)],0),3),\"\")","v":""}]
[{"$nulls":4},{"$f":"'Intervalos de tiempo'!E17","v":"09:30:00"},{"$f":"IFERROR(INDEX(Programadordeeventos[],MATCH(DATEVALUE(DateVal)&Programacióndiaria[[#This Row],[Hora]],LookUpDateAndTime,0),3),\"\")","v":""},null,{"$f":"IFERROR(DateVal+3,\"\")","v":"2022-06-26"},{"$f":"IFERROR(INDEX(Programadordeeventos[],MATCH($H$18&\"|\"&ROW(A4),Programadordeeventos[VALOR ÚNICO (CALCULADO)],0),2),\"\")","v":""},{"$f":"IFERROR(INDEX(Programadordeeventos[],MATCH($H$18&\"|\"&ROW(A4),Programadordeeventos[VALOR ÚNICO (CALCULADO)],0),3),\"\")","v":""}]
[null,"EDITAR PROGRAMACIÓN",null,null,{"$f":"'Intervalos de tiempo'!E18","v":"09:45:00"},{"$f":"IFERROR(INDEX(Programadordeeventos[],MATCH(DATEVALUE(DateVal)&Programacióndiaria[[#This Row],[Hora]],LookUpDateAndTime,0),3),\"\")","v":""},null,null,{"$f":"IFERROR(INDEX(Programadordeeventos[],MATCH($H$18&\"|\"&ROW(A5),Programadordeeventos[VALOR ÚNICO (CALCULADO)],0),2),\"\")","v":""},{"$f":"IFERROR(INDEX(Programadordeeventos[],MATCH($H$18&\"|\"&ROW(A5),Programadordeeventos[VALOR ÚNICO (CALCULADO)],0),3),\"\")","v":""}]
[{"$nulls":4},{"$f":"'Intervalos de tiempo'!E19","v":"10:00:00"},{"$f":"IFERROR(INDEX(Programadordeeventos[],MATCH(DATEVALUE(DateVal)&Programacióndiaria[[#This Row],[Hora]],LookUpDateAndTime,0),3),\"\")","v":"Descanso"},null,null,{"$f":"IFERROR(INDEX(Programadordeeventos[],MATCH($H$18&\"|\"&ROW(A6),Programadordeeventos[VALOR ÚNICO (CALCULADO)],0),2),\"\")","v":""},{"$f":"IFERROR(INDEX(Programadordeeventos[],MATCH($H$18&\"|\"&ROW(A6),Programadordeeventos[VALOR ÚNICO (CALCULADO)],0),3),\"\")","v":""}]
[null,"Seleccione esta opción para editar los intervalos de tiempo.",null,null,{"$f":"'Intervalos de tiempo'!E20","v":"10:15:00"},{"$f":"IFERROR(INDEX(Programadordeeventos[],MATCH(DATEVALUE(DateVal)&Programacióndiaria[[#This Row],[Hora]],LookUpDateAndTime,0),3),\"\")","v":""},null,{"$f":"IFERROR(TEXT(DATEVALUE(DateVal)+4,\"dddd\"),\"\")","v":"lunes"},{"$f":"IFERROR(INDEX(Programadordeeventos[],MATCH($H$24&\"|\"&ROW(A1),Programadordeeventos[VALOR ÚNICO (CALCULADO)],0),2),\"\")","v":""},{"$f":"IFERROR(INDEX(Programadordeeventos[],MATCH($H$24&\"|\"&ROW(A1),Programadordeeventos[VALOR ÚNICO (CALCULADO)],0),3),\"\")","v":""}]
[{"$nulls":4},{"$f":"'Intervalos de tiempo'!E21","v":"10:30:00"},{"$f":"IFERROR(INDEX(Programadordeeventos[],MATCH(DATEVALUE(DateVal)&Programacióndiaria[[#This Row],[Hora]],LookUpDateAndTime,0),3),\"\")","v":""},null,{"$f":"IFERROR(TEXT(DATEVALUE(DateVal)+4,\"d\"),\"\")","v":"27"},{"$f":"IFERROR(INDEX(Programadordeeventos[],MATCH($H$24&\"|\"&ROW(A2),Programadordeeventos[VALOR ÚNICO (CALCULADO)],0),2),\"\")","v":""},{"$f":"IFERROR(INDEX(Programadordeeventos[],MATCH($H$24&\"|\"&ROW(A2),Programadordeeventos[VALOR ÚNICO (CALCULADO)],0),3),\"\")","v":""}]
[null,"Seleccione esta opción para agregar un nuevo evento.",null,null,{"$f":"'Intervalos de tiempo'!E22","v":"10:45:00"},{"$f":"IFERROR(INDEX(Programadordeeventos[],MATCH(DATEVALUE(DateVal)&Programacióndiaria[[#This Row],[Hora]],LookUpDateAndTime,0),3),\"\")","v":""},null,null,{"$f":"IFERROR(INDEX(Programadordeeventos[],MATCH($H$24&\"|\"&ROW(A3),Programadordeeventos[VALOR ÚNICO (CALCULADO)],0),2),\"\")","v":""},{"$f":"IFERROR(INDEX(Programadordeeventos[],MATCH($H$24&\"|\"&ROW(A3),Programadordeeventos[VALOR ÚNICO (CALCULADO)],0),3),\"\")","v":""}]
[{"$nulls":4},{"$f":"'Intervalos de tiempo'!E23","v":"11:00:00"},{"$f":"IFERROR(INDEX(Programadordeeventos[],MATCH(DATEVALUE(DateVal)&Programacióndiaria[[#This Row],[Hora]],LookUpDateAndTime,0),3),\"\")","v":""},null,{"$f":"IFERROR(DateVal+4,\"\")","v":"2022-06-27"},{"$f":"IFERROR(INDEX(Programadordeeventos[],MATCH($H$24&\"|\"&ROW(A4),Programadordeeventos[VALOR ÚNICO (CALCULADO)],0),2),\"\")","v":""},{"$f":"IFERROR(INDEX(Programadordeeventos[],MATCH($H$24&\"|\"&ROW(A4),Programadordeeventos[VALOR ÚNICO (CALCULADO)],0),3),\"\")","v":""}]
[null,"RESALTAR EN LA PROGRAMACIÓN:",null,null,{"$f":"'Intervalos de tiempo'!E24","v":"11:15:00"},{"$f":"IFERROR(INDEX(Programadordeeventos[],MATCH(DATEVALUE(DateVal)&Programacióndiaria[[#This Row],[Hora]],LookUpDateAndTime,0),3),\"\")","v":""},null,null,{"$f":"IFERROR(INDEX(Programadordeeventos[],MATCH($H$24&\"|\"&ROW(A5),Programadordeeventos[VALOR ÚNICO (CALCULADO)],0),2),\"\")","v":""},{"$f":"IFERROR(INDEX(Programadordeeventos[],MATCH($H$24&\"|\"&ROW(A5),Programadordeeventos[VALOR ÚNICO (CALCULADO)],0),3),\"\")","v":""}]
[null,"Descanso",null,null,{"$f":"'Intervalos de tiempo'!E25","v":"11:30:00"},{"$f":"IFERROR(INDEX(Programadordeeventos[],MATCH(DATEVALUE(DateVal)&Programacióndiaria[[#This Row],[Hora]],LookUpDateAndTime,0),3),\"\")","v":""},null,{"$f":"IFERROR(TEXT(DATEVALUE(DateVal)+5,\"dddd\"),\"\")","v":"martes"},{"$f":"IFERROR(INDEX(Programadordeeventos[],MATCH($H$29&\"|\"&ROW(A1),Programadordeeventos[VALOR ÚNICO (CALCULADO)],0),2),\"\")","v":""},{"$f":"IFERROR(INDEX(Programadordeeventos[],MATCH($H$29&\"|\"&ROW(A1),Programadordeeventos[VALOR ÚNICO (CALCULADO)],0),3),\"\")","v":""}]
[{"$nulls":4},{"$f":"'Intervalos de tiempo'!E26","v":"11:45:00"},{"$f":"IFERROR(INDEX(Programadordeeventos[],MATCH(DATEVALUE(DateVal)&Programacióndiaria[[#This Row],[Hora]],LookUpDateAndTime,0),3),\"\")","v":""},null,{"$f":"IFERROR(TEXT(DATEVALUE(DateVal)+5,\"d\"),\"\")","v":"28"},{"$f":"IFERROR(INDEX(Programadordeeventos[],MATCH($H$29&\"|\"&ROW(A2),Programadordeeventos[VALOR ÚNICO (CALCULADO)],0),2),\"\")","v":""},{"$f":"IFERROR(INDEX(Programadordeeventos[],MATCH($H$29&\"|\"&ROW(A2),Programadordeeventos[VALOR ÚNICO (CALCULADO)],0),3),\"\")","v":""}]
[{"$nulls":4},{"$f":"'Intervalos de tiempo'!E27","v":"12:00:00"},{"$f":"IFERROR(INDEX(Programadordeeventos[],MATCH(DATEVALUE(DateVal)&Programacióndiaria[[#This Row],[Hora]],LookUpDateAndTime,0),3),\"\")","v":"Comida"},null,null,{"$f":"IFERROR(INDEX(Programadordeeventos[],MATCH($H$29&\"|\"&ROW(A3),Programadordeeventos[VALOR ÚNICO (CALCULADO)],0),2),\"\")","v":""},{"$f":"IFERROR(INDEX(Programadordeeventos[],MATCH($H$29&\"|\"&ROW(A3),Programadordeeventos[VALOR ÚNICO (CALCULADO)],0),3),\"\")","v":""}]
[{"$nulls":4},{"$f":"'Intervalos de tiempo'!E28","v":"12:15:00"},{"$f":"IFERROR(INDEX(Programadordeeventos[],MATCH(DATEVALUE(DateVal)&Programacióndiaria[[#This Row],[Hora]],LookUpDateAndTime,0),3),\"\")","v":""},null,{"$f":"IFERROR(DateVal+5,\"\")","v":"2022-06-28"},{"$f":"IFERROR(INDEX(Programadordeeventos[],MATCH($H$29&\"|\"&ROW(A4),Programadordeeventos[VALOR ÚNICO (CALCULADO)],0),2),\"\")","v":""},{"$f":"IFERROR(INDEX(Programadordeeventos[],MATCH($H$29&\"|\"&ROW(A4),Programadordeeventos[VALOR ÚNICO (CALCULADO)],0),3),\"\")","v":""}]
[{"$nulls":4},{"$f":"'Intervalos de tiempo'!E29","v":"12:30:00"},{"$f":"IFERROR(INDEX(Programadordeeventos[],MATCH(DATEVALUE(DateVal)&Programacióndiaria[[#This Row],[Hora]],LookUpDateAndTime,0),3),\"\")","v":""},null,null,{"$f":"IFERROR(INDEX(Programadordeeventos[],MATCH($H$29&\"|\"&ROW(A5),Programadordeeventos[VALOR ÚNICO (CALCULADO)],0),2),\"\")","v":""},{"$f":"IFERROR(INDEX(Programadordeeventos[],MATCH($H$29&\"|\"&ROW(A5),Programadordeeventos[VALOR ÚNICO (CALCULADO)],0),3),\"\")","v":""}]
[{"$nulls":4},{"$f":"'Intervalos de tiempo'!E30","v":"12:45:00"},{"$f":"IFERROR(INDEX(Programadordeeventos[],MATCH(DATEVALUE(DateVal)&Programacióndiaria[[#This Row],[Hora]],LookUpDateAndTime,0),3),\"\")","v":""},null,{"$f":"IFERROR(TEXT(DATEVALUE(DateVal)+6,\"dddd\"),\"\")","v":"miércoles"},{"$f":"IFERROR(INDEX(Programadordeeventos[],MATCH($H$34&\"|\"&ROW(A1),Programadordeeventos[VALOR ÚNICO (CALCULADO)],0),2),\"\")","v":""},{"$f":"IFERROR(INDEX(Programadordeeventos[],MATCH($H$34&\"|\"&ROW(A1),Programadordeeventos[VALOR ÚNICO (CALCULADO)],0),3),\"\")","v":""}]
[{"$nulls":4},{"$f":"'Intervalos de tiempo'!E31","v":"13:00:00"},{"$f":"IFERROR(INDEX(Programadordeeventos[],MATCH(DATEVALUE(DateVal)&Programacióndiaria[[#This Row],[Hora]],LookUpDateAndTime,0),3),\"\")","v":""},null,{"$f":"IFERROR(TEXT(DATEVALUE(DateVal)+6,\"d\"),\"\")","v":"29"},{"$f":"IFERROR(INDEX(Programadordeeventos[],MATCH($H$34&\"|\"&ROW(A2),Programadordeeventos[VALOR ÚNICO (CALCULADO)],0),2),\"\")","v":""},{"$f":"IFERROR(INDEX(Programadordeeventos[],MATCH($H$34&\"|\"&ROW(A2),Programadordeeventos[VALOR ÚNICO (CALCULADO)],0),3),\"\")","v":""}]
[{"$nulls":4},{"$f":"'Intervalos de tiempo'!E32","v":"13:15:00"},{"$f":"IFERROR(INDEX(Programadordeeventos[],MATCH(DATEVALUE(DateVal)&Programacióndiaria[[#This Row],[Hora]],LookUpDateAndTime,0),3),\"\")","v":""},null,null,{"$f":"IFERROR(INDEX(Programadordeeventos[],MATCH($H$34&\"|\"&ROW(A3),Programadordeeventos[VALOR ÚNICO (CALCULADO)],0),2),\"\")","v":""},{"$f":"IFERROR(INDEX(Programadordeeventos[],MATCH($H$34&\"|\"&ROW(A3),Programadordeeventos[VALOR ÚNICO (CALCULADO)],0),3),\"\")","v":""}]
[{"$nulls":4},{"$f":"'Intervalos de tiempo'!E33","v":"13:30:00"},{"$f":"IFERROR(INDEX(Programadordeeventos[],MATCH(DATEVALUE(DateVal)&Programacióndiaria[[#This Row],[Hora]],LookUpDateAndTime,0),3),\"\")","v":"Llamada corporativa"},null,{"$f":"IFERROR(DateVal+6,\"\")","v":"2022-06-29"},{"$f":"IFERROR(INDEX(Programadordeeventos[],MATCH($H$34&\"|\"&ROW(A4),Programadordeeventos[VALOR ÚNICO (CALCULADO)],0),2),\"\")","v":""},{"$f":"IFERROR(INDEX(Programadordeeventos[],MATCH($H$34&\"|\"&ROW(A4),Programadordeeventos[VALOR ÚNICO (CALCULADO)],0),3),\"\")","v":""}]
[{"$nulls":4},{"$f":"'Intervalos de tiempo'!E34","v":"13:45:00"},{"$f":"IFERROR(INDEX(Programadordeeventos[],MATCH(DATEVALUE(DateVal)&Programacióndiaria[[#This Row],[Hora]],LookUpDateAndTime,0),3),\"\")","v":""},null,null,{"$f":"IFERROR(INDEX(Programadordeeventos[],MATCH($H$34&\"|\"&ROW(A5),Programadordeeventos[VALOR ÚNICO (CALCULADO)],0),2),\"\")","v":""},{"$f":"IFERROR(INDEX(Programadordeeventos[],MATCH($H$34&\"|\"&ROW(A5),Programadordeeventos[VALOR ÚNICO (CALCULADO)],0),3),\"\")","v":""}]
[{"$nulls":4},{"$f":"'Intervalos de tiempo'!E35","v":"14:00:00"},{"$f":"IFERROR(INDEX(Programadordeeventos[],MATCH(DATEVALUE(DateVal)&Programacióndiaria[[#This Row],[Hora]],LookUpDateAndTime,0),3),\"\")","v":""}]
[{"$nulls":4},{"$f":"'Intervalos de tiempo'!E36","v":"14:15:00"},{"$f":"IFERROR(INDEX(Programadordeeventos[],MATCH(DATEVALUE(DateVal)&Programacióndiaria[[#This Row],[Hora]],LookUpDateAndTime,0),3),\"\")","v":""}]
[{"$nulls":4},{"$f":"'Intervalos de tiempo'!E37","v":"14:30:00"},{"$f":"IFERROR(INDEX(Programadordeeventos[],MATCH(DATEVALUE(DateVal)&Programacióndiaria[[#This Row],[Hora]],LookUpDateAndTime,0),3),\"\")","v":""}]
[{"$nulls":4},{"$f":"'Intervalos de tiempo'!E38","v":"14:45:00"},{"$f":"IFERROR(INDEX(Programadordeeventos[],MATCH(DATEVALUE(DateVal)&Programacióndiaria[[#This Row],[Hora]],LookUpDateAndTime,0),3),\"\")","v":""}]
[{"$nulls":4},{"$f":"'Intervalos de tiempo'!E39","v":"15:00:00"},{"$f":"IFERROR(INDEX(Programadordeeventos[],MATCH(DATEVALUE(DateVal)&Programacióndiaria[[#This Row],[Hora]],LookUpDateAndTime,0),3),\"\")","v":"Descanso"}]
[{"$nulls":4},{"$f":"'Intervalos de tiempo'!E40","v":"15:15:00"},{"$f":"IFERROR(INDEX(Programadordeeventos[],MATCH(DATEVALUE(DateVal)&Programacióndiaria[[#This Row],[Hora]],LookUpDateAndTime,0),3),\"\")","v":""}]
[{"$nulls":4},{"$f":"'Intervalos de tiempo'!E41","v":"15:30:00"},{"$f":"IFERROR(INDEX(Programadordeeventos[],MATCH(DATEVALUE(DateVal)&Programacióndiaria[[#This Row],[Hora]],LookUpDateAndTime,0),3),\"\")","v":""}]
[{"$nulls":4},{"$f":"'Intervalos de tiempo'!E42","v":"15:45:00"},{"$f":"IFERROR(INDEX(Programadordeeventos[],MATCH(DATEVALUE(DateVal)&Programacióndiaria[[#This Row],[Hora]],LookUpDateAndTime,0),3),\"\")","v":""}]
[{"$nulls":4},{"$f":"'Intervalos de tiempo'!E43","v":"16:00:00"},{"$f":"IFERROR(INDEX(Programadordeeventos[],MATCH(DATEVALUE(DateVal)&Programacióndiaria[[#This Row],[Hora]],LookUpDateAndTime,0),3),\"\")","v":""}]
[{"$nulls":4},{"$f":"'Intervalos de tiempo'!E44","v":"16:15:00"},{"$f":"IFERROR(INDEX(Programadordeeventos[],MATCH(DATEVALUE(DateVal)&Programacióndiaria[[#This Row],[Hora]],LookUpDateAndTime,0),3),\"\")","v":""}]
[{"$nulls":4},{"$f":"'Intervalos de tiempo'!E45","v":"16:30:00"},{"$f":"IFERROR(INDEX(Programadordeeventos[],MATCH(DATEVALUE(DateVal)&Programacióndiaria[[#This Row],[Hora]],LookUpDateAndTime,0),3),\"\")","v":""}]
[{"$nulls":4},{"$f":"'Intervalos de tiempo'!E46","v":"16:45:00"},{"$f":"IFERROR(INDEX(Programadordeeventos[],MATCH(DATEVALUE(DateVal)&Programacióndiaria[[#This Row],[Hora]],LookUpDateAndTime,0),3),\"\")","v":""}]
[{"$nulls":4},{"$f":"'Intervalos de tiempo'!E47","v":"17:00:00"},{"$f":"IFERROR(INDEX(Programadordeeventos[],MATCH(DATEVALUE(DateVal)&Programacióndiaria[[#This Row],[Hora]],LookUpDateAndTime,0),3),\"\")","v":"Casa"}]
[{"$nulls":4},{"$f":"'Intervalos de tiempo'!E48","v":"17:15:00"},{"$f":"IFERROR(INDEX(Programadordeeventos[],MATCH(DATEVALUE(DateVal)&Programacióndiaria[[#This Row],[Hora]],LookUpDateAndTime,0),3),\"\")","v":""}]
[{"$nulls":4},{"$f":"'Intervalos de tiempo'!E49","v":"17:30:00"},{"$f":"IFERROR(INDEX(Programadordeeventos[],MATCH(DATEVALUE(DateVal)&Programacióndiaria[[#This Row],[Hora]],LookUpDateAndTime,0),3),\"\")","v":""}]
[{"$nulls":4},{"$f":"'Intervalos de tiempo'!E50","v":"17:45:00"},{"$f":"IFERROR(INDEX(Programadordeeventos[],MATCH(DATEVALUE(DateVal)&Programacióndiaria[[#This Row],[Hora]],LookUpDateAndTime,0),3),\"\")","v":""}]
[{"$nulls":4},{"$f":"'Intervalos de tiempo'!E51","v":"18:00:00"},{"$f":"IFERROR(INDEX(Programadordeeventos[],MATCH(DATEVALUE(DateVal)&Programacióndiaria[[#This Row],[Hora]],LookUpDateAndTime,0),3),\"\")","v":"Entrenamiento de fútbol"}]
[{"$nulls":4},{"$f":"'Intervalos de tiempo'!E52","v":"18:15:00"},{"$f":"IFERROR(INDEX(Programadordeeventos[],MATCH(DATEVALUE(DateVal)&Programacióndiaria[[#This Row],[Hora]],LookUpDateAndTime,0),3),\"\")","v":""}]
[{"$nulls":4},{"$f":"'Intervalos de tiempo'!E53","v":"18:30:00"},{"$f":"IFERROR(INDEX(Programadordeeventos[],MATCH(DATEVALUE(DateVal)&Programacióndiaria[[#This Row],[Hora]],LookUpDateAndTime,0),3),\"\")","v":""}]
[{"$nulls":4},{"$f":"'Intervalos de tiempo'!E54","v":"18:45:00"},{"$f":"IFERROR(INDEX(Programadordeeventos[],MATCH(DATEVALUE(DateVal)&Programacióndiaria[[#This Row],[Hora]],LookUpDateAndTime,0),3),\"\")","v":""}]
[{"$nulls":4},{"$f":"'Intervalos de tiempo'!E55","v":"19:00:00"},{"$f":"IFERROR(INDEX(Programadordeeventos[],MATCH(DATEVALUE(DateVal)&Programacióndiaria[[#This Row],[Hora]],LookUpDateAndTime,0),3),\"\")","v":""}]
[{"$nulls":4},{"$f":"'Intervalos de tiempo'!E56","v":"19:15:00"},{"$f":"IFERROR(INDEX(Programadordeeventos[],MATCH(DATEVALUE(DateVal)&Programacióndiaria[[#This Row],[Hora]],LookUpDateAndTime,0),3),\"\")","v":""}]
[{"$nulls":4},{"$f":"'Intervalos de tiempo'!E57","v":"19:30:00"},{"$f":"IFERROR(INDEX(Programadordeeventos[],MATCH(DATEVALUE(DateVal)&Programacióndiaria[[#This Row],[Hora]],LookUpDateAndTime,0),3),\"\")","v":""}]
[{"$nulls":4},{"$f":"'Intervalos de tiempo'!E58","v":"19:45:00"},{"$f":"IFERROR(INDEX(Programadordeeventos[],MATCH(DATEVALUE(DateVal)&Programacióndiaria[[#This Row],[Hora]],LookUpDateAndTime,0),3),\"\")","v":""}]
[{"$nulls":4},{"$f":"'Intervalos de tiempo'!E59","v":"20:00:00"},{"$f":"IFERROR(INDEX(Programadordeeventos[],MATCH(DATEVALUE(DateVal)&Programacióndiaria[[#This Row],[Hora]],LookUpDateAndTime,0),3),\"\")","v":""}]
[{"$nulls":4},{"$f":"'Intervalos de tiempo'!E60","v":"20:15:00"},{"$f":"IFERROR(INDEX(Programadordeeventos[],MATCH(DATEVALUE(DateVal)&Programacióndiaria[[#This Row],[Hora]],LookUpDateAndTime,0),3),\"\")","v":""}]
[{"$nulls":4},{"$f":"'Intervalos de tiempo'!E61","v":"20:30:00"},{"$f":"IFERROR(INDEX(Programadordeeventos[],MATCH(DATEVALUE(DateVal)&Programacióndiaria[[#This Row],[Hora]],LookUpDateAndTime,0),3),\"\")","v":""}]
[{"$nulls":4},{"$f":"'Intervalos de tiempo'!E62","v":"20:45:00"},{"$f":"IFERROR(INDEX(Programadordeeventos[],MATCH(DATEVALUE(DateVal)&Programacióndiaria[[#This Row],[Hora]],LookUpDateAndTime,0),3),\"\")","v":""}]
[{"$nulls":4},{"$f":"'Intervalos de tiempo'!E63","v":"21:00:00"},{"$f":"IFERROR(INDEX(Programadordeeventos[],MATCH(DATEVALUE(DateVal)&Programacióndiaria[[#This Row],[Hora]],LookUpDateAndTime,0),3),\"\")","v":""}]
[{"$nulls":4},{"$f":"'Intervalos de tiempo'!E64","v":""},{"$f":"IFERROR(INDEX(Programadordeeventos[],MATCH(DATEVALUE(DateVal)&Programacióndiaria[[#This Row],[Hora]],LookUpDateAndTime,0),3),\"\")","v":""}]
[{"$nulls":4},{"$f":"'Intervalos de tiempo'!E65","v":""},{"$f":"IFERROR(INDEX(Programadordeeventos[],MATCH(DATEVALUE(DateVal)&Programacióndiaria[[#This Row],[Hora]],LookUpDateAndTime,0),3),\"\")","v":""}]
[{"$nulls":4},{"$f":"'Intervalos de tiempo'!E66","v":""},{"$f":"IFERROR(INDEX(Programadordeeventos[],MATCH(DATEVALUE(DateVal)&Programacióndiaria[[#This Row],[Hora]],LookUpDateAndTime,0),3),\"\")","v":""}]
[{"$nulls":4},{"$f":"'Intervalos de tiempo'!E67","v":""},{"$f":"IFERROR(INDEX(Programadordeeventos[],MATCH(DATEVALUE(DateVal)&Programacióndiaria[[#This Row],[Hora]],LookUpDateAndTime,0),3),\"\")","v":""}]
[{"$nulls":4},{"$f":"'Intervalos de tiempo'!E68","v":""},{"$f":"IFERROR(INDEX(Programadordeeventos[],MATCH(DATEVALUE(DateVal)&Programacióndiaria[[#This Row],[Hora]],LookUpDateAndTime,0),3),\"\")","v":""}]
[{"$nulls":4},{"$f":"'Intervalos de tiempo'!E69","v":""},{"$f":"IFERROR(INDEX(Programadordeeventos[],MATCH(DATEVALUE(DateVal)&Programacióndiaria[[#This Row],[Hora]],LookUpDateAndTime,0),3),\"\")","v":""}]
[{"$nulls":4},{"$f":"'Intervalos de tiempo'!E70","v":""},{"$f":"IFERROR(INDEX(Programadordeeventos[],MATCH(DATEVALUE(DateVal)&Programacióndiaria[[#This Row],[Hora]],LookUpDateAndTime,0),3),\"\")","v":""}]
[{"$nulls":4},{"$f":"'Intervalos de tiempo'!E71","v":""},{"$f":"IFERROR(INDEX(Programadordeeventos[],MATCH(DATEVALUE(DateVal)&Programacióndiaria[[#This Row],[Hora]],LookUpDateAndTime,0),3),\"\")","v":""}]
[{"$nulls":4},{"$f":"'Intervalos de tiempo'!E72","v":""},{"$f":"IFERROR(INDEX(Programadordeeventos[],MATCH(DATEVALUE(DateVal)&Programacióndiaria[[#This Row],[Hora]],LookUpDateAndTime,0),3),\"\")","v":""}]
[{"$nulls":4},{"$f":"'Intervalos de tiempo'!E73","v":""},{"$f":"IFERROR(INDEX(Programadordeeventos[],MATCH(DATEVALUE(DateVal)&Programacióndiaria[[#This Row],[Hora]],LookUpDateAndTime,0),3),\"\")","v":""}]
[{"$nulls":4},{"$f":"'Intervalos de tiempo'!E74","v":""},{"$f":"IFERROR(INDEX(Programadordeeventos[],MATCH(DATEVALUE(DateVal)&Programacióndiaria[[#This Row],[Hora]],LookUpDateAndTime,0),3),\"\")","v":""}]
[{"$nulls":4},{"$f":"'Intervalos de tiempo'!E75","v":""},{"$f":"IFERROR(INDEX(Programadordeeventos[],MATCH(DATEVALUE(DateVal)&Programacióndiaria[[#This Row],[Hora]],LookUpDateAndTime,0),3),\"\")","v":""}]

{"sheet":"Programador de eventos","index":1,"n_rows":15,"n_cols":8,"rows_kept":15,"merged":[[0,1,0,2],[1,1,4,2],[5,1,6,2],[7,1,7,2]]}
[null,"Programador de eventos"]
[null,{"$f":"DAY(DateVal)","v":23},null,null,"FECHA","TIEMPO","DESCRIPCIÓN","VALOR ÚNICO (CALCULADO)"]
[{"$nulls":4},{"$f":"TODAY()","v":"2022-06-23"},"06:00:00","Despertarse",{"$f":"Programadordeeventos[[#This Row],[FECHA]]&\"|\"&COUNTIF($E$3:E3,E3)","v":"44735|1"}]
[{"$nulls":4},{"$f":"TODAY()","v":"2022-06-23"},"06:30:00","Ducha",{"$f":"Programadordeeventos[[#This Row],[FECHA]]&\"|\"&COUNTIF($E$3:E4,E4)","v":"44735|2"}]
[{"$nulls":4},"2022-06-23","07:30:00","Ir al trabajo",{"$f":"Programadordeeventos[[#This Row],[FECHA]]&\"|\"&COUNTIF($E$3:E5,E5)","v":"44735|3"}]
[null,{"$f":"TEXT(DateVal,\"dddd\")","v":"jueves"},null,null,"2022-06-23","08:00:00","Comenzar el turno",{"$f":"Programadordeeventos[[#This Row],[FECHA]]&\"|\"&COUNTIF($E$3:E6,E6)","v":"44735|4"}]
[{"$nulls":4},"2022-06-23","10:00:00","Descanso",{"$f":"Programadordeeventos[[#This Row],[FECHA]]&\"|\"&COUNTIF($E$3:E7,E7)","v":"44735|5"}]
[null,{"$f":"DateVal","v":"23 JUNIO 2022"},null,null,"2022-06-23","12:00:00","Comida",{"$f":"Programadordeeventos[[#This Row],[FECHA]]&\"|\"&COUNTIF($E$3:E8,E8)","v":"44735|6"}]
[{"$nulls":4},"2022-06-23","13:00:00","Volver al trabajo",{"$f":"Programadordeeventos[[#This Row],[FECHA]]&\"|\"&COUNTIF($E$3:E9,E9)","v":"44735|7"}]
[null,"Seleccione esta opción para editar los intervalos de tiempo.",null,null,"2022-06-23","13:30:00","Llamada corporativa",{"$f":"Programadordeeventos[[#This Row],[FECHA]]&\"|\"&COUNTIF($E$3:E10,E10)","v":"44735|8"}]
[{"$nulls":4},"2022-06-23","15:00:00","Descanso",{"$f":"Programadordeeventos[[#This Row],[FECHA]]&\"|\"&COUNTIF($E$3:E11,E11)","v":"44735|9"}]
[null,"Seleccione esta opción para ver la programación diaria.",null,null,"2022-06-23","17:00:00","Casa",{"$f":"Programadordeeventos[[#This Row],[FECHA]]&\"|\"&COUNTIF($E$3:E12,E12)","v":"44735|10"}]
[{"$nulls":4},"2022-06-23","18:00:00","Entrenamiento de fútbol",{"$f":"Programadordeeventos[[#This Row],[FECHA]]&\"|\"&COUNTIF($E$3:E13,E13)","v":"44735|11"}]
[{"$nulls":4},{"$f":"TODAY()+1","v":"2022-06-24"},"06:30:00","Desayuno",{"$f":"Programadordeeventos[[#This Row],[FECHA]]&\"|\"&COUNTIF($E$3:E15,E14)","v":"44736|2"}]
[{"$nulls":4},{"$f":"TODAY()+1","v":"2022-06-24"},"07:30:00","Ir al trabajo",{"$f":"Programadordeeventos[[#This Row],[FECHA]]&\"|\"&COUNTIF($E$3:E15,E15)","v":"44736|2"}]

{"sheet":"Intervalos de tiempo","index":2,"n_rows":75,"n_cols":5,"rows_kept":75,"merged":[[0,1,0,2],[1,1,1,2],[9,1,9,2]]}
[null,"Intervalos de tiempo"]
[null,"EDITAR LA TABLA DE HORAS",null,null,"Hora"]
[{"$nulls":4},{"$f":"Horadeinicio","v":"06:00:00"}]
[null,"Hora de inicio","06:00:00",null,{"$f":"IFERROR(IF($E3+Incremento>Horadefinalización,\"\",$E3+Incremento),\"\")","v":"06:15:00"}]
[{"$nulls":4},{"$f":"IFERROR(IF($E4+Incremento>Horadefinalización,\"\",$E4+Incremento),\"\")","v":"06:30:00"}]
[null,"Intervalo","15 MIN.",null,"06:45:00"]
[{"$nulls":4},"07:00:00"]
[null,"Hora de finalización","21:00:00",null,"07:15:00"]
[{"$nulls":4},"07:30:00"]
[null,"VER PROGRAMACIÓN",null,null,"07:45:00"]
[{"$nulls":4},"08:00:00"]
[null,"Seleccione esta opción para ver la programación diaria.",null,null,"08:15:00"]
[{"$nulls":4},"08:30:00"]
[null,"Seleccione esta opción para agregar un nuevo evento.",null,null,"08:45:00"]
[{"$nulls":4},"09:00:00"]
[{"$nulls":4},"09:15:00"]
[{"$nulls":4},"09:30:00"]
[{"$nulls":4},"09:45:00"]
[{"$nulls":4},"10:00:00"]
[{"$nulls":4},"10:15:00"]
[{"$nulls":4},"10:30:00"]
[{"$nulls":4},"10:45:00"]
[{"$nulls":4},"11:00:00"]
[{"$nulls":4},"11:15:00"]
[{"$nulls":4},"11:30:00"]
[{"$nulls":4},"11:45:00"]
[{"$nulls":4},"12:00:00"]
[{"$nulls":4},"12:15:00"]
[{"$nulls":4},"12:30:00"]
[{"$nulls":4},"12:45:00"]
[{"$nulls":4},"13:00:00"]
[{"$nulls":4},"13:15:00"]
[{"$nulls":4},"13:30:00"]
[{"$nulls":4},"13:45:00"]
[{"$nulls":4},"14:00:00"]
[{"$nulls":4},{"$f":"IFERROR(IF($E35+Incremento>Horadefinalización,\"\",$E35+Incremento),\"\")","v":"14:15:00"}]
[{"$nulls":4},"14:30:00"]
[{"$nulls":4},"14:45:00"]
[{"$nulls":4},"15:00:00"]
[{"$nulls":4},"15:15:00"]
[{"$nulls":4},"15:30:00"]
[{"$nulls":4},"15:45:00"]
[{"$nulls":4},"16:00:00"]
[{"$nulls":4},"16:15:00"]
[{"$nulls":4},"16:30:00"]
[{"$nulls":4},"16:45:00"]
[{"$nulls":4},"17:00:00"]
[{"$nulls":4},"17:15:00"]
[{"$nulls":4},"17:30:00"]
[{"$nulls":4},"17:45:00"]
[{"$nulls":4},"18:00:00"]
[{"$nulls":4},"18:15:00"]
[{"$nulls":4},"18:30:00"]
[{"$nulls":4},"18:45:00"]
[{"$nulls":4},"19:00:00"]
[{"$nulls":4},"19:15:00"]
[{"$nulls":4},"19:30:00"]
[{"$nulls":4},"19:45:00"]
[{"$nulls":4},"20:00:00"]
[{"$nulls":4},"20:15:00"]
[{"$nulls":4},"20:30:00"]
[{"$nulls":4},"20:45:00"]
[{"$nulls":4},"21:00:00"]
[{"$nulls":4},""]
[{"$nulls":4},""]
[{"$nulls":4},""]
[{"$nulls":4},""]
[{"$nulls":4},{"$f":"IFERROR(IF($E67+Incremento>Horadefinalización,\"\",$E67+Incremento),\"\")","v":""}]
[{"$nulls":4},""]
[{"$nulls":4},""]
[{"$nulls":4},""]
[{"$nulls":4},""]
[{"$nulls":4},""]
[{"$nulls":4},""]
[{"$nulls":4},""]